[Event "Titled Tuesday Blitz June 14 Late 2022"]
[White "Sargsyan, Anna M."]
[Black "Kovanova, Baira"]
[WhiteFideId "13308130"]
[BlackFideId "4164083"]
[WhiteElo "2271"]
[BlackElo "2190"]
[Result "1/2-1/2"]
[Round "06"]
[TimeControl "180+1"]
[Date "2022.06.15"]
[WhiteClock "0:00:06"]
[BlackClock "0:00:20"]

1. d4 {[%clk 0:03:00]}  Nf6 {[%clk 0:02:59]} 2. c4 {[%clk 0:03:01]}  e6 {[%clk 0:02:59]} 3. Nf3 {[%clk 0:03:00]}  d5 {[%clk 0:02:59]} 4. Bf4 {[%clk 0:02:57]}  Bb4+ {[%clk 0:02:48]} 5. Nc3 {[%clk 0:02:56]}  dxc4 {[%clk 0:02:35]} 6. Ne5 {[%clk 0:02:47]}  O-O {[%clk 0:02:34]} 7. Nxc4 {[%clk 0:02:40]}  c5 {[%clk 0:02:29]} 8. dxc5 {[%clk 0:02:35]}  Bxc5 {[%clk 0:02:17]} 9. e3 {[%clk 0:02:19]}  Nc6 {[%clk 0:02:15]} 10. Be2 {[%clk 0:02:11]}  Nd5 {[%clk 0:02:10]} 11. Bg3 {[%clk 0:02:11]}  Nxc3 {[%clk 0:02:00]} 12. bxc3 {[%clk 0:02:12]}  b5 {[%clk 0:02:00]} 13. Nd6 {[%clk 0:02:09]}  a6 {[%clk 0:01:16]} 14. O-O {[%clk 0:02:05]}  Qb6 {[%clk 0:01:13]} 15. Nxc8 {[%clk 0:02:02]}  Raxc8 {[%clk 0:01:12]} 16. a4 {[%clk 0:02:03]}  b4 {[%clk 0:01:12]} 17. cxb4 {[%clk 0:01:55]}  Nxb4 {[%clk 0:01:12]} 18. a5 {[%clk 0:01:55]}  Qb7 {[%clk 0:01:11]} 19. Bf3 {[%clk 0:01:53]}  Qb5 {[%clk 0:01:11]} 20. Qb3 {[%clk 0:01:47]}  Rfd8 {[%clk 0:01:08]} 21. h3 {[%clk 0:01:45]}  h6 {[%clk 0:01:08]} 22. Be4 {[%clk 0:01:27]}  Be7 {[%clk 0:01:03]} 23. Rfd1 {[%clk 0:01:21]}  Rxd1+ {[%clk 0:01:01]} 24. Rxd1 {[%clk 0:01:22]}  Qxa5 {[%clk 0:00:59]} 25. Rd7 {[%clk 0:01:12]}  Bf6 {[%clk 0:00:54]} 26. Rb7 {[%clk 0:00:54]}  Nd5 {[%clk 0:00:53]} 27. Rb8 {[%clk 0:00:42]}  Rxb8 {[%clk 0:00:41]} 28. Qxb8+ {[%clk 0:00:39]}  Qd8 {[%clk 0:00:41]} 29. Qa7 {[%clk 0:00:38]}  a5 {[%clk 0:00:41]} 30. Qa6 {[%clk 0:00:19]}  Nc3 {[%clk 0:00:40]} 31. Bf3 {[%clk 0:00:16]}  a4 {[%clk 0:00:40]} 32. Kh2 {[%clk 0:00:15]}  Be7 {[%clk 0:00:33]} 33. Be5 {[%clk 0:00:13]}  Bf6 {[%clk 0:00:28]} 34. Bxc3 {[%clk 0:00:09]}  Bxc3 {[%clk 0:00:28]} 35. Qxa4 {[%clk 0:00:10]}  Be5+ {[%clk 0:00:24]} 36. g3 {[%clk 0:00:10]}  g6 {[%clk 0:00:21]} 37. Kg2 {[%clk 0:00:10]}  Kg7 {[%clk 0:00:21]} 38. h4 {[%clk 0:00:10]}  h5 {[%clk 0:00:21]} 39. Qa7 {[%clk 0:00:10]}  Qc7 {[%clk 0:00:21]} 40. Qxc7 {[%clk 0:00:09]}  Bxc7 {[%clk 0:00:21]} 41. Bb7 {[%clk 0:00:07]}  Kf6 {[%clk 0:00:20]} 42. Ba6 {[%clk 0:00:06]} 1/2-1/2


[Site "https://www.chess.com"]

[Event "Titled Tuesday Blitz June 14 Late 2022"]
[White "Sibilio, Mario"]
[Black "Curtis, John"]
[WhiteFideId "800422"]
[BlackFideId "3200256"]
[WhiteElo "2296"]
[BlackElo "2203"]
[Result "1/2-1/2"]
[Round "06"]
[TimeControl "180+1"]
[Date "2022.06.15"]
[WhiteClock "0:00:17"]
[BlackClock "0:00:39"]

1. d4 {[%clk 0:03:00]}  Nf6 {[%clk 0:02:57]} 2. c4 {[%clk 0:02:59]}  e6 {[%clk 0:02:57]} 3. Nc3 {[%clk 0:02:55]}  d5 {[%clk 0:02:56]} 4. Bg5 {[%clk 0:02:48]}  Be7 {[%clk 0:02:53]} 5. e3 {[%clk 0:02:46]}  Nbd7 {[%clk 0:02:52]} 6. Rc1 {[%clk 0:02:44]}  c6 {[%clk 0:02:52]} 7. Nf3 {[%clk 0:02:36]}  O-O {[%clk 0:02:52]} 8. Qc2 {[%clk 0:02:35]}  a6 {[%clk 0:02:49]} 9. cxd5 {[%clk 0:02:25]}  exd5 {[%clk 0:02:48]} 10. Bd3 {[%clk 0:02:25]}  Re8 {[%clk 0:02:47]} 11. O-O {[%clk 0:02:24]}  h6 {[%clk 0:02:47]} 12. Bh4 {[%clk 0:02:19]}  Ne4 {[%clk 0:02:45]} 13. Bxe4 {[%clk 0:02:14]}  Bxh4 {[%clk 0:02:36]} 14. Bh7+ {[%clk 0:02:14]}  Kh8 {[%clk 0:02:29]} 15. Bf5 {[%clk 0:02:13]}  Bf6 {[%clk 0:02:26]} 16. e4 {[%clk 0:02:07]}  dxe4 {[%clk 0:02:15]} 17. Nxe4 {[%clk 0:02:07]}  Nf8 {[%clk 0:01:58]} 18. Bxc8 {[%clk 0:01:58]}  Rxc8 {[%clk 0:01:55]} 19. Rfd1 {[%clk 0:01:55]}  Ng6 {[%clk 0:01:52]} 20. Ne5 {[%clk 0:01:49]}  Kg8 {[%clk 0:01:37]} 21. Nxg6 {[%clk 0:01:40]}  fxg6 {[%clk 0:01:37]} 22. Nc5 {[%clk 0:01:36]}  Qe7 {[%clk 0:01:26]} 23. Qxg6 {[%clk 0:01:28]}  Bxd4 {[%clk 0:01:19]} 24. Nd3 {[%clk 0:01:18]}  Qf7 {[%clk 0:01:14]} 25. Qg4 {[%clk 0:01:17]}  Rcd8 {[%clk 0:01:13]} 26. h4 {[%clk 0:01:10]}  c5 {[%clk 0:01:12]} 27. b3 {[%clk 0:01:09]}  b6 {[%clk 0:01:12]} 28. Rc2 {[%clk 0:01:05]}  Qe6 {[%clk 0:01:10]} 29. Qxe6+ {[%clk 0:01:00]}  Rxe6 {[%clk 0:01:11]} 30. Kf1 {[%clk 0:01:00]}  a5 {[%clk 0:01:10]} 31. a4 {[%clk 0:00:51]}  Re4 {[%clk 0:01:05]} 32. g3 {[%clk 0:00:51]}  Rf8 {[%clk 0:01:04]} 33. Re2 {[%clk 0:00:48]}  Rg4 {[%clk 0:01:02]} 34. Kg2 {[%clk 0:00:47]}  Rg6 {[%clk 0:01:01]} 35. f4 {[%clk 0:00:46]}  Rc6 {[%clk 0:01:01]} 36. Rc1 {[%clk 0:00:44]}  Bf6 {[%clk 0:01:00]} 37. Kf3 {[%clk 0:00:43]}  Rd8 {[%clk 0:01:00]} 38. Ne5 {[%clk 0:00:43]}  Bxe5 {[%clk 0:00:59]} 39. Rxe5 {[%clk 0:00:42]}  Kf7 {[%clk 0:00:58]} 40. Rc3 {[%clk 0:00:42]}  Rcd6 {[%clk 0:00:57]} 41. Ke4 {[%clk 0:00:40]}  Rd4+ {[%clk 0:00:57]} 42. Ke3 {[%clk 0:00:37]}  g6 {[%clk 0:00:56]} 43. h5 {[%clk 0:00:37]}  gxh5 {[%clk 0:00:52]} 44. Rxh5 {[%clk 0:00:36]}  Re8+ {[%clk 0:00:52]} 45. Kf3 {[%clk 0:00:36]}  Kg6 {[%clk 0:00:52]} 46. g4 {[%clk 0:00:32]}  Ree4 {[%clk 0:00:51]} 47. Rf5 {[%clk 0:00:31]}  c4 {[%clk 0:00:51]} 48. Rxc4 {[%clk 0:00:25]}  Rxc4 {[%clk 0:00:51]} 49. bxc4 {[%clk 0:00:23]}  Rxc4 {[%clk 0:00:51]} 50. Rb5 {[%clk 0:00:23]}  Rxa4 {[%clk 0:00:49]} 51. Rxb6+ {[%clk 0:00:22]}  Kg7 {[%clk 0:00:50]} 52. Ra6 {[%clk 0:00:22]}  Kh7 {[%clk 0:00:48]} 53. Kg3 {[%clk 0:00:20]}  Kg7 {[%clk 0:00:47]} 54. f5 {[%clk 0:00:19]}  h5 {[%clk 0:00:41]} 55. g5 {[%clk 0:00:18]}  Rg4+ {[%clk 0:00:39]} 56. Kf3 {[%clk 0:00:18]}  Rxg5 {[%clk 0:00:39]} 57. Rxa5 {[%clk 0:00:18]}  Kf6 {[%clk 0:00:38]} 58. Kf4 {[%clk 0:00:17]}  Rg4+ {[%clk 0:00:38]} 59. Kf3 {[%clk 0:00:17]}  Rg5 {[%clk 0:00:38]} 60. Kf4 {[%clk 0:00:17]}  Rg4+ {[%clk 0:00:38]} 61. Kf3 {[%clk 0:00:17]}  Rg5 {[%clk 0:00:39]} 1/2-1/2


[Site "https://www.chess.com"]

[Event "Titled Tuesday Blitz June 14 Late 2022"]
[White "Sjugirov, Sanan"]
[Black "Acosta, Pablo Ismael"]
[WhiteFideId "4189302"]
[BlackFideId "124311"]
[WhiteElo "2602"]
[BlackElo "2313"]
[Result "1-0"]
[Round "06"]
[TimeControl "180+1"]
[Date "2022.06.14"]
[WhiteClock "0:00:13"]
[BlackClock "0:00:03"]

1. e4 {[%clk 0:03:00]}  e6 {[%clk 0:02:57]} 2. d4 {[%clk 0:03:00]}  d5 {[%clk 0:02:56]} 3. Nd2 {[%clk 0:03:00]}  c5 {[%clk 0:02:54]} 4. exd5 {[%clk 0:02:58]}  Qxd5 {[%clk 0:02:54]} 5. Ngf3 {[%clk 0:02:59]}  cxd4 {[%clk 0:02:49]} 6. Bc4 {[%clk 0:02:59]}  Qd6 {[%clk 0:02:49]} 7. O-O {[%clk 0:03:00]}  Nf6 {[%clk 0:02:49]} 8. Nb3 {[%clk 0:03:00]}  Nc6 {[%clk 0:02:50]} 9. Nbxd4 {[%clk 0:03:01]}  Nxd4 {[%clk 0:02:49]} 10. Nxd4 {[%clk 0:03:02]}  Be7 {[%clk 0:02:49]} 11. c3 {[%clk 0:02:59]}  O-O {[%clk 0:02:49]} 12. Qf3 {[%clk 0:02:58]}  Qc7 {[%clk 0:02:44]} 13. Bd3 {[%clk 0:02:52]}  Bd7 {[%clk 0:02:35]} 14. Re1 {[%clk 0:02:48]}  Bc6 {[%clk 0:02:14]} 15. Nxc6 {[%clk 0:02:46]}  Qxc6 {[%clk 0:02:14]} 16. Qxc6 {[%clk 0:02:46]}  bxc6 {[%clk 0:02:15]} 17. Bf4 {[%clk 0:02:36]}  Rfd8 {[%clk 0:02:09]} 18. Ba6 {[%clk 0:02:30]}  Rd7 {[%clk 0:02:09]} 19. Rad1 {[%clk 0:02:24]}  Rad8 {[%clk 0:02:09]} 20. Rxd7 {[%clk 0:02:24]}  Rxd7 {[%clk 0:02:10]} 21. Kf1 {[%clk 0:02:20]}  h6 {[%clk 0:01:56]} 22. Ke2 {[%clk 0:02:18]}  g5 {[%clk 0:01:55]} 23. Bc1 {[%clk 0:02:15]}  Bc5 {[%clk 0:01:52]} 24. f3 {[%clk 0:02:05]}  Bb6 {[%clk 0:01:44]} 25. Rd1 {[%clk 0:01:58]}  Rxd1 {[%clk 0:01:35]} 26. Kxd1 {[%clk 0:01:59]}  Nd5 {[%clk 0:01:18]} 27. Bb7 {[%clk 0:01:51]}  Ne7 {[%clk 0:01:17]} 28. b4 {[%clk 0:01:42]}  f5 {[%clk 0:01:10]} 29. a4 {[%clk 0:01:41]}  a5 {[%clk 0:01:06]} 30. Ba3 {[%clk 0:01:28]}  Kf7 {[%clk 0:00:45]} 31. Kc2 {[%clk 0:01:28]}  g4 {[%clk 0:00:20]} 32. c4 {[%clk 0:01:15]}  h5 {[%clk 0:00:13]} 33. c5 {[%clk 0:01:08]}  Bc7 {[%clk 0:00:12]} 34. b5 {[%clk 0:01:06]}  cxb5 {[%clk 0:00:12]} 35. axb5 {[%clk 0:01:05]}  Bxh2 {[%clk 0:00:13]} 36. b6 {[%clk 0:01:00]}  h4 {[%clk 0:00:12]} 37. c6 {[%clk 0:00:58]}  gxf3 {[%clk 0:00:12]} 38. gxf3 {[%clk 0:00:56]}  Nd5 {[%clk 0:00:09]} 39. Bc5 {[%clk 0:00:46]}  h3 {[%clk 0:00:08]} 40. Ba6 {[%clk 0:00:20]}  Bf4 {[%clk 0:00:03]} 41. Bf1 {[%clk 0:00:20]}  h2 {[%clk 0:00:03]} 42. Bg2 {[%clk 0:00:21]}  a4 {[%clk 0:00:03]} 43. Kb2 {[%clk 0:00:13]} 1-0


[Site "https://www.chess.com"]

[Event "Titled Tuesday Blitz June 14 Late 2022"]
[White "Swicarz, Maciej"]
[Black "Prydun, Andriy"]
[WhiteFideId "1113585"]
[BlackFideId "14145898"]
[WhiteElo "2049"]
[BlackElo "2063"]
[Result "1-0"]
[Round "06"]
[TimeControl "180+1"]
[Date "2022.06.15"]
[WhiteClock "0:00:07"]
[BlackClock "0:00:03"]

1. c4 {[%clk 0:03:00]}  Nf6 {[%clk 0:01:44]} 2. Nc3 {[%clk 0:02:59]}  c6 {[%clk 0:01:43]} 3. d4 {[%clk 0:02:56]}  d6 {[%clk 0:01:44]} 4. e4 {[%clk 0:02:56]}  e6 {[%clk 0:01:44]} 5. Nge2 {[%clk 0:02:52]}  Be7 {[%clk 0:01:44]} 6. Ng3 {[%clk 0:02:52]}  a6 {[%clk 0:01:40]} 7. a4 {[%clk 0:02:51]}  a5 {[%clk 0:01:40]} 8. Be2 {[%clk 0:02:50]}  Nbd7 {[%clk 0:01:37]} 9. Be3 {[%clk 0:02:49]}  e5 {[%clk 0:01:29]} 10. Nf5 {[%clk 0:02:45]}  O-O {[%clk 0:01:26]} 11. d5 {[%clk 0:02:41]}  c5 {[%clk 0:01:24]} 12. f3 {[%clk 0:02:34]}  Ne8 {[%clk 0:01:20]} 13. O-O {[%clk 0:02:29]}  Bg5 {[%clk 0:01:18]} 14. Bf2 {[%clk 0:02:26]}  g6 {[%clk 0:01:17]} 15. Ne3 {[%clk 0:02:01]}  Ng7 {[%clk 0:01:17]} 16. g4 {[%clk 0:01:57]}  f5 {[%clk 0:01:10]} 17. gxf5 {[%clk 0:01:56]}  gxf5 {[%clk 0:01:11]} 18. Kh1 {[%clk 0:01:56]}  f4 {[%clk 0:00:57]} 19. Nf5 {[%clk 0:01:49]}  Kh8 {[%clk 0:00:14]} 20. Nxd6 {[%clk 0:01:44]}  Nf6 {[%clk 0:00:14]} 21. Bxc5 {[%clk 0:01:40]}  b6 {[%clk 0:00:11]} 22. Ba3 {[%clk 0:01:35]}  Nfh5 {[%clk 0:00:10]} 23. Rg1 {[%clk 0:01:31]}  Qf6 {[%clk 0:00:07]} 24. Qf1 {[%clk 0:01:22]}  Bd7 {[%clk 0:00:06]} 25. Qg2 {[%clk 0:01:21]}  Bh6 {[%clk 0:00:05]} 26. Ncb5 {[%clk 0:01:04]}  Qh4 {[%clk 0:00:05]} 27. Rgf1 {[%clk 0:00:39]}  Rf6 {[%clk 0:00:05]} 28. Qf2 {[%clk 0:00:32]}  Ng3+ {[%clk 0:00:05]} 29. Kg1 {[%clk 0:00:32]}  Rg6 {[%clk 0:00:06]} 30. Nf7+ {[%clk 0:00:29]}  Kg8 {[%clk 0:00:05]} 31. Nxh6+ {[%clk 0:00:29]}  Qxh6 {[%clk 0:00:06]} 32. hxg3 {[%clk 0:00:22]}  Rxg3+ {[%clk 0:00:06]} 33. Qg2 {[%clk 0:00:22]}  Qh3 {[%clk 0:00:05]} 34. Rf2 {[%clk 0:00:22]}  Rxg2+ {[%clk 0:00:04]} 35. Rxg2 {[%clk 0:00:23]}  Kh8 {[%clk 0:00:05]} 36. Nd6 {[%clk 0:00:22]}  Qh4 {[%clk 0:00:04]} 37. Nf7+ {[%clk 0:00:21]}  Kg8 {[%clk 0:00:05]} 38. Nxe5 {[%clk 0:00:21]}  Bh3 {[%clk 0:00:05]} 39. Rh2 {[%clk 0:00:20]}  Qg3+ {[%clk 0:00:05]} 40. Kh1 {[%clk 0:00:20]}  h5 {[%clk 0:00:05]} 41. Rg1 {[%clk 0:00:20]}  Qh4 {[%clk 0:00:05]} 42. Ng6 {[%clk 0:00:20]}  Qf6 {[%clk 0:00:05]} 43. Rxh3 {[%clk 0:00:20]}  Qd4 {[%clk 0:00:04]} 44. Rh2 {[%clk 0:00:19]}  Kf7 {[%clk 0:00:05]} 45. Nxf4 {[%clk 0:00:19]}  Rg8 {[%clk 0:00:04]} 46. Nh3 {[%clk 0:00:15]}  h4 {[%clk 0:00:04]} 47. Ng5+ {[%clk 0:00:15]}  Ke8 {[%clk 0:00:05]} 48. Rxh4 {[%clk 0:00:15]}  Qf2 {[%clk 0:00:04]} 49. Rh2 {[%clk 0:00:14]}  Qe3 {[%clk 0:00:04]} 50. Ne6 {[%clk 0:00:14]}  Nxe6 {[%clk 0:00:03]} 51. Rxg8+ {[%clk 0:00:14]}  Kf7 {[%clk 0:00:04]} 52. Rg1 {[%clk 0:00:14]}  Nf4 {[%clk 0:00:04]} 53. Bd1 {[%clk 0:00:12]}  Nd3 {[%clk 0:00:04]} 54. d6 {[%clk 0:00:10]}  Nf2+ {[%clk 0:00:03]} 55. Kg2 {[%clk 0:00:11]}  Nxd1 {[%clk 0:00:04]} 56. d7 {[%clk 0:00:08]}  Qe2+ {[%clk 0:00:03]} 57. Kg3 {[%clk 0:00:07]}  Qf2+ {[%clk 0:00:03]} 58. Rxf2 {[%clk 0:00:07]} 1-0


[Site "https://www.chess.com"]

[Event "Titled Tuesday Blitz June 14 Late 2022"]
[White "Tanenbaum, Zachary"]
[Black "Jocev, Milan"]
[WhiteFideId "2060850"]
[BlackFideId "900680"]
[WhiteElo "2175"]
[BlackElo "2322"]
[Result "1-0"]
[Round "06"]
[TimeControl "180+1"]
[Date "2022.06.14"]
[WhiteClock "0:00:05"]
[BlackClock "0:00:01"]

1. e4 {[%clk 0:03:00]}  c5 {[%clk 0:02:32]} 2. Nf3 {[%clk 0:02:59]}  d6 {[%clk 0:02:32]} 3. d4 {[%clk 0:03:00]}  cxd4 {[%clk 0:02:33]} 4. Nxd4 {[%clk 0:03:00]}  Nf6 {[%clk 0:02:33]} 5. Nc3 {[%clk 0:03:00]}  a6 {[%clk 0:02:33]} 6. Be3 {[%clk 0:03:00]}  e5 {[%clk 0:02:28]} 7. Nb3 {[%clk 0:03:00]}  Be7 {[%clk 0:02:23]} 8. h3 {[%clk 0:02:59]}  Be6 {[%clk 0:02:16]} 9. f4 {[%clk 0:02:58]}  exf4 {[%clk 0:02:15]} 10. Bxf4 {[%clk 0:02:59]}  O-O {[%clk 0:02:15]} 11. Qe2 {[%clk 0:02:58]}  Nc6 {[%clk 0:02:14]} 12. O-O-O {[%clk 0:02:57]}  Qc7 {[%clk 0:02:06]} 13. Kb1 {[%clk 0:02:54]}  Ne5 {[%clk 0:02:05]} 14. g4 {[%clk 0:02:52]}  g6 {[%clk 0:01:40]} 15. Nd5 {[%clk 0:02:29]}  Bxd5 {[%clk 0:01:35]} 16. exd5 {[%clk 0:02:30]}  Rac8 {[%clk 0:01:26]} 17. Qd2 {[%clk 0:01:51]}  Nfd7 {[%clk 0:01:17]} 18. h4 {[%clk 0:01:41]}  Bf6 {[%clk 0:00:56]} 19. h5 {[%clk 0:01:36]}  g5 {[%clk 0:00:35]} 20. Be3 {[%clk 0:01:01]}  h6 {[%clk 0:00:30]} 21. Bd3 {[%clk 0:00:46]}  Nxd3 {[%clk 0:00:24]} 22. Qxd3 {[%clk 0:00:46]}  Ne5 {[%clk 0:00:22]} 23. Qf5 {[%clk 0:00:45]}  Bg7 {[%clk 0:00:17]} 24. Bxg5 {[%clk 0:00:34]}  hxg5 {[%clk 0:00:12]} 25. h6 {[%clk 0:00:35]}  Bh8 {[%clk 0:00:05]} 26. h7+ {[%clk 0:00:32]}  Kg7 {[%clk 0:00:05]} 27. Qxg5+ {[%clk 0:00:25]}  Ng6 {[%clk 0:00:05]} 28. Nd4 {[%clk 0:00:24]}  f6 {[%clk 0:00:03]} 29. Qf5 {[%clk 0:00:08]}  Kf7 {[%clk 0:00:01]} 30. Ne6 {[%clk 0:00:07]}  Qc4 {[%clk 0:00:01]} 31. Ng5+ {[%clk 0:00:05]} 1-0


[Site "https://www.chess.com"]

[Event "Titled Tuesday Blitz June 14 Late 2022"]
[White "Tatarinov, Dmitry"]
[Black "Tymrakiewicz, Rafal"]
[WhiteFideId "24160067"]
[BlackFideId "1108832"]
[WhiteElo "2302"]
[BlackElo "2205"]
[Result "0-1"]
[Round "06"]
[TimeControl "180+1"]
[Date "2022.06.15"]
[WhiteClock "0:00:05"]
[BlackClock "0:00:22"]

1. g3 {[%clk 0:00:09]}  e5 {[%clk 0:02:49]} 2. Bg2 {[%clk 0:00:10]}  Nc6 {[%clk 0:02:49]} 3. d3 {[%clk 0:00:10]}  g6 {[%clk 0:02:49]} 4. c3 {[%clk 0:00:11]}  Bg7 {[%clk 0:02:50]} 5. Nd2 {[%clk 0:00:12]}  f5 {[%clk 0:02:50]} 6. Ngf3 {[%clk 0:00:13]}  Nf6 {[%clk 0:02:50]} 7. O-O {[%clk 0:00:14]}  d6 {[%clk 0:02:51]} 8. e4 {[%clk 0:00:15]}  fxe4 {[%clk 0:02:49]} 9. dxe4 {[%clk 0:00:11]}  O-O {[%clk 0:02:49]} 10. h3 {[%clk 0:00:11]}  Bh6 {[%clk 0:02:34]} 11. Qe2 {[%clk 0:00:11]}  Be6 {[%clk 0:02:33]} 12. Nc4 {[%clk 0:00:11]}  Bxc1 {[%clk 0:02:32]} 13. Raxc1 {[%clk 0:00:12]}  Qd7 {[%clk 0:02:32]} 14. Ng5 {[%clk 0:00:11]}  Nh5 {[%clk 0:02:19]} 15. Nxe6 {[%clk 0:00:11]}  Qxe6 {[%clk 0:02:20]} 16. b3 {[%clk 0:00:11]}  Rf7 {[%clk 0:02:17]} 17. Ne3 {[%clk 0:00:11]}  Raf8 {[%clk 0:02:17]} 18. Nd5 {[%clk 0:00:11]}  a6 {[%clk 0:02:00]} 19. Rcd1 {[%clk 0:00:09]}  Ng7 {[%clk 0:01:42]} 20. Rd3 {[%clk 0:00:09]}  Qc8 {[%clk 0:01:36]} 21. h4 {[%clk 0:00:07]}  Ne6 {[%clk 0:01:27]} 22. Rf3 {[%clk 0:00:07]}  Nc5 {[%clk 0:01:19]} 23. Rxf7 {[%clk 0:00:07]}  Rxf7 {[%clk 0:01:20]} 24. b4 {[%clk 0:00:07]}  Ne6 {[%clk 0:01:18]} 25. Bh3 {[%clk 0:00:07]}  Qe8 {[%clk 0:01:18]} 26. Kg2 {[%clk 0:00:06]}  Kg7 {[%clk 0:01:04]} 27. Qe3 {[%clk 0:00:06]}  h6 {[%clk 0:01:01]} 28. h5 {[%clk 0:00:06]}  Nf8 {[%clk 0:00:58]} 29. hxg6 {[%clk 0:00:07]}  Nxg6 {[%clk 0:00:58]} 30. Bf5 {[%clk 0:00:07]}  Qd8 {[%clk 0:00:55]} 31. Rh1 {[%clk 0:00:08]}  Qg5 {[%clk 0:00:53]} 32. Qd3 {[%clk 0:00:08]}  Nce7 {[%clk 0:00:46]} 33. Nxe7 {[%clk 0:00:08]}  Nf4+ {[%clk 0:00:45]} 34. Kf1 {[%clk 0:00:05]}  Nxd3 {[%clk 0:00:45]} 35. Nd5 {[%clk 0:00:06]}  Qd2 {[%clk 0:00:40]} 36. Rh2 {[%clk 0:00:06]}  Qe1+ {[%clk 0:00:39]} 37. Kg2 {[%clk 0:00:05]}  Qxf2+ {[%clk 0:00:37]} 38. Kh3 {[%clk 0:00:06]}  Qf1+ {[%clk 0:00:37]} 39. Kg4 {[%clk 0:00:06]}  Nf2+ {[%clk 0:00:35]} 40. Kh4 {[%clk 0:00:07]}  Rxf5 {[%clk 0:00:32]} 41. exf5 {[%clk 0:00:07]}  Ne4 {[%clk 0:00:29]} 42. Ne3 {[%clk 0:00:07]}  Qf3 {[%clk 0:00:28]} 43. f6+ {[%clk 0:00:05]}  Kg6 {[%clk 0:00:22]} 0-1


[Site "https://www.chess.com"]

[Event "Titled Tuesday Blitz June 14 Late 2022"]
[White "Terry, Renato"]
[Black "Gurevich, Dmitry"]
[WhiteFideId "3803457"]
[BlackFideId "2000407"]
[WhiteElo "2577"]
[BlackElo "2506"]
[Result "1-0"]
[Round "06"]
[TimeControl "180+1"]
[Date "2022.06.14"]
[WhiteClock "0:00:02"]
[BlackClock "0:00:02"]

1. d4 {[%clk 0:03:00]}  Nf6 {[%clk 0:02:58]} 2. Bg5 {[%clk 0:03:01]}  c5 {[%clk 0:02:57]} 3. Bxf6 {[%clk 0:03:00]}  gxf6 {[%clk 0:02:57]} 4. d5 {[%clk 0:03:01]}  d6 {[%clk 0:02:56]} 5. c4 {[%clk 0:02:56]}  Bg7 {[%clk 0:02:55]} 6. Nc3 {[%clk 0:02:57]}  a6 {[%clk 0:02:55]} 7. a4 {[%clk 0:02:51]}  Qa5 {[%clk 0:02:53]} 8. Qc2 {[%clk 0:02:50]}  Nd7 {[%clk 0:02:43]} 9. e3 {[%clk 0:02:50]}  Qb4 {[%clk 0:02:34]} 10. a5 {[%clk 0:02:28]}  b5 {[%clk 0:02:32]} 11. cxb5 {[%clk 0:02:26]}  axb5 {[%clk 0:02:31]} 12. Bxb5 {[%clk 0:02:24]}  Rxa5 {[%clk 0:02:29]} 13. Rxa5 {[%clk 0:02:24]}  Qxa5 {[%clk 0:02:28]} 14. Ne2 {[%clk 0:02:23]}  O-O {[%clk 0:02:11]} 15. O-O {[%clk 0:02:23]}  Nb6 {[%clk 0:02:07]} 16. Ng3 {[%clk 0:02:17]}  f5 {[%clk 0:01:38]} 17. Nxf5 {[%clk 0:02:09]}  Bxf5 {[%clk 0:01:22]} 18. Qxf5 {[%clk 0:02:10]}  Bxc3 {[%clk 0:01:02]} 19. Bd3 {[%clk 0:02:10]}  Ra8 {[%clk 0:00:49]} 20. Qxh7+ {[%clk 0:02:07]}  Kf8 {[%clk 0:00:49]} 21. bxc3 {[%clk 0:02:08]}  Qxc3 {[%clk 0:00:48]} 22. Be4 {[%clk 0:01:52]}  Ra1 {[%clk 0:00:41]} 23. g4 {[%clk 0:01:42]}  Rxf1+ {[%clk 0:00:38]} 24. Kxf1 {[%clk 0:01:43]}  Nc4 {[%clk 0:00:35]} 25. Kg2 {[%clk 0:01:00]}  Nd2 {[%clk 0:00:28]} 26. Qh6+ {[%clk 0:00:36]}  Ke8 {[%clk 0:00:24]} 27. Bf5 {[%clk 0:00:36]}  Qe5 {[%clk 0:00:18]} 28. f3 {[%clk 0:00:11]}  Kd8 {[%clk 0:00:14]} 29. Qf8+ {[%clk 0:00:10]}  Kc7 {[%clk 0:00:13]} 30. Qc8+ {[%clk 0:00:11]}  Kb6 {[%clk 0:00:14]} 31. Qb8+ {[%clk 0:00:10]}  Ka5 {[%clk 0:00:13]} 32. Qa8+ {[%clk 0:00:05]}  Kb4 {[%clk 0:00:13]} 33. Qb7+ {[%clk 0:00:06]}  Kc3 {[%clk 0:00:12]} 34. Qa6 {[%clk 0:00:03]}  Qxe3 {[%clk 0:00:05]} 35. Qa1+ {[%clk 0:00:03]}  Kb4 {[%clk 0:00:04]} 36. Qb2+ {[%clk 0:00:02]}  Nb3 {[%clk 0:00:04]} 37. h4 {[%clk 0:00:02]}  c4 {[%clk 0:00:04]} 38. h5 {[%clk 0:00:02]}  c3 {[%clk 0:00:04]} 39. Qf2 {[%clk 0:00:02]}  Qd2 {[%clk 0:00:03]} 40. Qxd2 {[%clk 0:00:01]}  cxd2 {[%clk 0:00:02]} 41. Bc2 {[%clk 0:00:02]}  Nd4 {[%clk 0:00:02]} 42. Bd1 {[%clk 0:00:02]} 1-0


[Site "https://www.chess.com"]